[Event "Titled Tuesday Blitz December 06 Late 2022"]
[White "Gutkin, Ilya"]
[Black "Erdogmus, Yagiz Kaan"]
[WhiteFideId "16203470"]
[BlackFideId "44599790"]
[WhiteElo "2265"]
[BlackElo "2353"]
[Result "0-1"]
[Round "07"]
[TimeControl "180+1"]
[Date "2022.12.07"]
[WhiteClock "0:00:02"]
[BlackClock "0:00:06"]

1. Nf3 {[%clk 0:03:00]}  c5 {[%clk 0:02:58]} 2. c4 {[%clk 0:03:00]}  Nc6 {[%clk 0:02:57]} 3. d4 {[%clk 0:02:58]}  cxd4 {[%clk 0:02:58]} 4. Nxd4 {[%clk 0:02:59]}  e6 {[%clk 0:02:58]} 5. Nc3 {[%clk 0:02:56]}  Nf6 {[%clk 0:02:57]} 6. e3 {[%clk 0:02:53]}  Nxd4 {[%clk 0:02:39]} 7. Qxd4 {[%clk 0:02:52]}  b6 {[%clk 0:02:38]} 8. Be2 {[%clk 0:02:48]}  Bb7 {[%clk 0:02:37]} 9. O-O {[%clk 0:02:48]}  Be7 {[%clk 0:02:31]} 10. Rd1 {[%clk 0:02:47]}  O-O {[%clk 0:02:29]} 11. b3 {[%clk 0:02:47]}  Bc6 {[%clk 0:01:29]} 12. Bb2 {[%clk 0:02:44]}  Ne8 {[%clk 0:01:28]} 13. Bf3 {[%clk 0:02:34]}  Bf6 {[%clk 0:01:15]} 14. Qd2 {[%clk 0:02:25]}  Bxf3 {[%clk 0:01:14]} 15. gxf3 {[%clk 0:02:25]}  d6 {[%clk 0:01:14]} 16. Ne4 {[%clk 0:02:10]}  Bxb2 {[%clk 0:01:13]} 17. Qxb2 {[%clk 0:02:11]}  f5 {[%clk 0:01:12]} 18. Nc3 {[%clk 0:01:42]}  Qg5+ {[%clk 0:01:10]} 19. Kh1 {[%clk 0:01:41]}  Qh5 {[%clk 0:01:09]} 20. Qe2 {[%clk 0:01:39]}  Rf6 {[%clk 0:00:55]} 21. f4 {[%clk 0:01:36]}  Qh4 {[%clk 0:00:50]} 22. Rg1 {[%clk 0:01:27]}  Rh6 {[%clk 0:00:46]} 23. Rg2 {[%clk 0:01:26]}  Nf6 {[%clk 0:00:46]} 24. Rag1 {[%clk 0:01:18]}  g6 {[%clk 0:00:30]} 25. Qf3 {[%clk 0:00:58]}  Rc8 {[%clk 0:00:23]} 26. Nb5 {[%clk 0:00:32]}  Ng4 {[%clk 0:00:21]} 27. Qg3 {[%clk 0:00:24]}  Qxg3 {[%clk 0:00:20]} 28. fxg3 {[%clk 0:00:24]}  a6 {[%clk 0:00:16]} 29. Nxd6 {[%clk 0:00:21]}  Rd8 {[%clk 0:00:16]} 30. c5 {[%clk 0:00:12]}  bxc5 {[%clk 0:00:16]} 31. Nc4 {[%clk 0:00:12]}  Rd3 {[%clk 0:00:10]} 32. Re1 {[%clk 0:00:12]}  Kf7 {[%clk 0:00:10]} 33. Kg1 {[%clk 0:00:10]}  Kf6 {[%clk 0:00:08]} 34. Rc2 {[%clk 0:00:08]}  g5 {[%clk 0:00:07]} 35. Rg2 {[%clk 0:00:02]}  Rh3 {[%clk 0:00:06]} 36. Rb2 {[%clk 0:00:02]}  h5 {[%clk 0:00:06]} 0-1


[Site "https://www.chess.com"]

[Event "Titled Tuesday Blitz December 06 Late 2022"]
[White "Harshavardhan G B"]
[Black "Vlassov, Nikolai"]
[WhiteFideId "25059009"]
[BlackFideId "4103360"]
[WhiteElo "2323"]
[BlackElo "2324"]
[Result "1-0"]
[Round "07"]
[TimeControl "180+1"]
[Date "2022.12.06"]
[WhiteClock "0:01:08"]
[BlackClock "0:00:27"]

1. d4 {[%clk 0:02:52]}  Nf6 {[%clk 0:02:59]} 2. c4 {[%clk 0:02:34]}  Nc6 {[%clk 0:02:58]} 3. Nf3 {[%clk 0:02:33]}  e6 {[%clk 0:02:58]} 4. a3 {[%clk 0:02:32]}  g6 {[%clk 0:02:58]} 5. Nc3 {[%clk 0:02:31]}  Bg7 {[%clk 0:02:58]} 6. e4 {[%clk 0:02:30]}  d5 {[%clk 0:02:58]} 7. e5 {[%clk 0:02:26]}  Ne4 {[%clk 0:02:58]} 8. h4 {[%clk 0:02:25]}  h6 {[%clk 0:02:51]} 9. Bd3 {[%clk 0:02:24]}  Nxc3 {[%clk 0:02:51]} 10. bxc3 {[%clk 0:02:25]}  dxc4 {[%clk 0:02:51]} 11. Bxc4 {[%clk 0:02:26]}  Na5 {[%clk 0:02:52]} 12. Bd3 {[%clk 0:02:25]}  c5 {[%clk 0:02:52]} 13. Be3 {[%clk 0:02:20]}  Bd7 {[%clk 0:02:51]} 14. O-O {[%clk 0:02:14]}  Qc7 {[%clk 0:02:50]} 15. h5 {[%clk 0:02:11]}  g5 {[%clk 0:02:49]} 16. Nd2 {[%clk 0:02:11]}  Bc6 {[%clk 0:02:46]} 17. Ne4 {[%clk 0:02:08]}  Bxe4 {[%clk 0:02:45]} 18. Bxe4 {[%clk 0:02:09]}  O-O-O {[%clk 0:02:45]} 19. Qa4 {[%clk 0:02:06]}  Kb8 {[%clk 0:02:14]} 20. Rab1 {[%clk 0:02:04]}  a6 {[%clk 0:02:00]} 21. dxc5 {[%clk 0:01:55]}  Bxe5 {[%clk 0:01:58]} 22. Bxb7 {[%clk 0:01:46]}  Bxc3 {[%clk 0:00:52]} 23. Bxa6+ {[%clk 0:01:40]}  Ka8 {[%clk 0:00:49]} 24. Bb7+ {[%clk 0:01:37]}  Kb8 {[%clk 0:00:47]} 25. Bf3+ {[%clk 0:01:13]}  Kc8 {[%clk 0:00:38]} 26. Qb5 {[%clk 0:01:12]}  Rd7 {[%clk 0:00:27]} 27. c6 {[%clk 0:01:08]} 1-0


[Site "https://www.chess.com"]

[Event "Titled Tuesday Blitz December 06 Late 2022"]
[White "Haszon, David"]
[Black "Osmonbekov, Talaibek"]
[WhiteFideId "733610"]
[BlackFideId "2017253"]
[WhiteElo "2210"]
[BlackElo "2135"]
[Result "1-0"]
[Round "07"]
[TimeControl "180+1"]
[Date "2022.12.07"]
[WhiteClock "0:00:22"]
[BlackClock "0:00:01"]

1. e4 {[%clk 0:03:00]}  c5 {[%clk 0:02:59]} 2. c3 {[%clk 0:03:00]}  d5 {[%clk 0:02:58]} 3. exd5 {[%clk 0:02:59]}  Qxd5 {[%clk 0:02:59]} 4. d4 {[%clk 0:03:00]}  Nf6 {[%clk 0:02:58]} 5. Nf3 {[%clk 0:03:00]}  e6 {[%clk 0:02:59]} 6. Na3 {[%clk 0:02:56]}  a6 {[%clk 0:02:47]} 7. Be2 {[%clk 0:02:50]}  cxd4 {[%clk 0:02:45]} 8. cxd4 {[%clk 0:02:50]}  Nc6 {[%clk 0:02:38]} 9. O-O {[%clk 0:02:48]}  Be7 {[%clk 0:02:35]} 10. Bc4 {[%clk 0:02:47]}  Qh5 {[%clk 0:02:30]} 11. Be2 {[%clk 0:02:44]}  Qd5 {[%clk 0:02:29]} 12. Nc4 {[%clk 0:02:44]}  Qd8 {[%clk 0:02:23]} 13. Nce5 {[%clk 0:02:26]}  Nxe5 {[%clk 0:02:22]} 14. dxe5 {[%clk 0:02:25]}  Qxd1 {[%clk 0:02:20]} 15. Rxd1 {[%clk 0:02:26]}  Nd5 {[%clk 0:02:19]} 16. Bc4 {[%clk 0:02:23]}  Nb6 {[%clk 0:02:15]} 17. Bb3 {[%clk 0:02:24]}  O-O {[%clk 0:02:07]} 18. Be3 {[%clk 0:02:24]}  Nd7 {[%clk 0:02:07]} 19. Rac1 {[%clk 0:02:23]}  a5 {[%clk 0:01:48]} 20. Rxc8 {[%clk 0:02:15]}  Raxc8 {[%clk 0:01:43]} 21. Rxd7 {[%clk 0:02:16]}  Bc5 {[%clk 0:01:40]} 22. Rxb7 {[%clk 0:02:07]}  Bxe3 {[%clk 0:01:35]} 23. fxe3 {[%clk 0:02:08]}  Rb8 {[%clk 0:01:34]} 24. Rc7 {[%clk 0:01:59]}  Rb4 {[%clk 0:01:18]} 25. Nd4 {[%clk 0:01:48]}  a4 {[%clk 0:01:16]} 26. a3 {[%clk 0:01:41]}  Rb6 {[%clk 0:00:53]} 27. Bxa4 {[%clk 0:01:40]}  Rxb2 {[%clk 0:00:52]} 28. Bc6 {[%clk 0:01:36]}  Ra2 {[%clk 0:00:43]} 29. a4 {[%clk 0:01:36]}  Rb8 {[%clk 0:00:42]} 30. Bb5 {[%clk 0:01:32]}  f6 {[%clk 0:00:26]} 31. Nxe6 {[%clk 0:01:27]}  fxe5 {[%clk 0:00:25]} 32. Rxg7+ {[%clk 0:01:26]}  Kh8 {[%clk 0:00:25]} 33. Rd7 {[%clk 0:01:19]}  Rc8 {[%clk 0:00:22]} 34. h4 {[%clk 0:01:17]}  h6 {[%clk 0:00:21]} 35. Rd8+ {[%clk 0:01:13]}  Rxd8 {[%clk 0:00:20]} 36. Nxd8 {[%clk 0:01:14]}  Kg7 {[%clk 0:00:20]} 37. Nc6 {[%clk 0:01:13]}  Kf6 {[%clk 0:00:20]} 38. Kh2 {[%clk 0:01:08]}  Ra3 {[%clk 0:00:15]} 39. a5 {[%clk 0:01:00]}  Rxe3 {[%clk 0:00:13]} 40. a6 {[%clk 0:01:00]}  Ra3 {[%clk 0:00:14]} 41. a7 {[%clk 0:01:00]}  e4 {[%clk 0:00:13]} 42. Kg1 {[%clk 0:00:47]}  e3 {[%clk 0:00:13]} 43. Kf1 {[%clk 0:00:48]}  Ra2 {[%clk 0:00:12]} 44. Ke1 {[%clk 0:00:45]}  Kf5 {[%clk 0:00:11]} 45. Be2 {[%clk 0:00:39]}  Kf4 {[%clk 0:00:09]} 46. Bf3 {[%clk 0:00:35]}  Kg3 {[%clk 0:00:04]} 47. h5 {[%clk 0:00:30]}  Kf4 {[%clk 0:00:04]} 48. Na5 {[%clk 0:00:22]}  Ra1+ {[%clk 0:00:01]} 49. Ke2 {[%clk 0:00:22]}  Ra2+ {[%clk 0:00:01]} 50. Kd3 {[%clk 0:00:22]} 1-0


[Site "https://www.chess.com"]

[Event "Titled Tuesday Blitz December 06 Late 2022"]
[White "Hoffmann, Asa"]
[Black "Ferreira, Vitor Hugo Vieira"]
[WhiteFideId "2001470"]
[BlackFideId "2119765"]
[WhiteElo "2117"]
[BlackElo "2146"]
[Result "1-0"]
[Round "07"]
[TimeControl "180+1"]
[Date "2022.12.07"]
[WhiteClock "0:00:48"]
[BlackClock "0:01:06"]

1. d4 {[%clk 0:02:59]}  d5 {[%clk 0:02:59]} 2. Bg5 {[%clk 0:02:58]}  Nf6 {[%clk 0:02:58]} 3. Nd2 {[%clk 0:02:57]}  e6 {[%clk 0:02:56]} 4. e3 {[%clk 0:02:57]}  c5 {[%clk 0:02:53]} 5. c3 {[%clk 0:02:57]}  b6 {[%clk 0:02:53]} 6. f4 {[%clk 0:02:56]}  Bb7 {[%clk 0:02:52]} 7. Ngf3 {[%clk 0:02:56]}  h6 {[%clk 0:02:52]} 8. Bh4 {[%clk 0:02:51]}  Be7 {[%clk 0:02:52]} 9. Bd3 {[%clk 0:02:50]}  Ne4 {[%clk 0:02:52]} 10. Bxe7 {[%clk 0:02:45]}  Qxe7 {[%clk 0:02:52]} 11. Bxe4 {[%clk 0:02:44]}  dxe4 {[%clk 0:02:52]} 12. Ne5 {[%clk 0:02:44]}  O-O {[%clk 0:02:38]} 13. O-O {[%clk 0:02:33]}  Nc6 {[%clk 0:02:37]} 14. Qh5 {[%clk 0:02:27]}  Nxe5 {[%clk 0:02:36]} 15. fxe5 {[%clk 0:02:26]}  Qg5 {[%clk 0:02:32]} 16. Qxg5 {[%clk 0:02:23]}  hxg5 {[%clk 0:02:32]} 17. Rfd1 {[%clk 0:02:14]}  Bd5 {[%clk 0:02:28]} 18. c4 {[%clk 0:02:11]}  Bb7 {[%clk 0:02:26]} 19. dxc5 {[%clk 0:02:10]}  bxc5 {[%clk 0:02:26]} 20. Nb3 {[%clk 0:02:10]}  Rac8 {[%clk 0:02:25]} 21. Rd7 {[%clk 0:02:08]}  Ba6 {[%clk 0:02:25]} 22. Rc1 {[%clk 0:02:05]}  Rfd8 {[%clk 0:02:25]} 23. Rxa7 {[%clk 0:02:03]}  Rc6 {[%clk 0:02:21]} 24. Nxc5 {[%clk 0:01:50]}  Rxc5 {[%clk 0:02:15]} 25. Rxa6 {[%clk 0:01:49]}  Rd2 {[%clk 0:02:14]} 26. Rb6 {[%clk 0:01:33]}  Rxe5 {[%clk 0:01:56]} 27. c5 {[%clk 0:01:30]}  Red5 {[%clk 0:01:53]} 28. h3 {[%clk 0:01:15]}  Rd1+ {[%clk 0:01:52]} 29. Rxd1 {[%clk 0:01:14]}  Rxd1+ {[%clk 0:01:53]} 30. Kh2 {[%clk 0:01:14]}  f5 {[%clk 0:01:52]} 31. Rxe6 {[%clk 0:01:08]}  Rc1 {[%clk 0:01:53]} 32. c6 {[%clk 0:01:07]}  Kf7 {[%clk 0:01:51]} 33. Rd6 {[%clk 0:01:06]}  f4 {[%clk 0:01:50]} 34. Rd4 {[%clk 0:01:04]}  f3 {[%clk 0:01:47]} 35. gxf3 {[%clk 0:01:02]}  exf3 {[%clk 0:01:47]} 36. Kg3 {[%clk 0:01:02]}  Rxc6 {[%clk 0:01:21]} 37. Kxf3 {[%clk 0:01:01]}  Rc2 {[%clk 0:01:22]} 38. Rb4 {[%clk 0:01:01]}  Kg6 {[%clk 0:01:19]} 39. a4 {[%clk 0:01:00]}  Kh5 {[%clk 0:01:20]} 40. a5 {[%clk 0:00:59]}  Rc5 {[%clk 0:01:20]} 41. Ra4 {[%clk 0:00:58]}  Rb5 {[%clk 0:01:19]} 42. a6 {[%clk 0:00:57]}  Rb4 {[%clk 0:01:05]} 43. Rxb4 {[%clk 0:00:56]}  g4+ {[%clk 0:01:06]} 44. hxg4+ {[%clk 0:00:56]}  Kh4 {[%clk 0:01:05]} 45. Rb5 {[%clk 0:00:54]}  g5 {[%clk 0:01:06]} 46. Rb6 {[%clk 0:00:48]} 1-0


[Site "https://www.chess.com"]

[Event "Titled Tuesday Blitz December 06 Late 2022"]
[White "Ismayil, Malak"]
[Black "Yuan, Qingyu"]
[WhiteFideId "13412604"]
[BlackFideId "8609772"]
[WhiteElo "1880"]
[BlackElo "2359"]
[Result "0-1"]
[Round "07"]
[TimeControl "180+1"]
[Date "2022.12.07"]
[WhiteClock "0:00:01"]
[BlackClock "0:00:04"]

1. e4 {[%clk 0:03:00]}  e5 {[%clk 0:02:56]} 2. Nf3 {[%clk 0:03:00]}  Nc6 {[%clk 0:02:56]} 3. Bc4 {[%clk 0:03:01]}  Bc5 {[%clk 0:02:56]} 4. d3 {[%clk 0:03:01]}  Nf6 {[%clk 0:02:56]} 5. O-O {[%clk 0:03:01]}  O-O {[%clk 0:02:56]} 6. Nc3 {[%clk 0:03:02]}  a6 {[%clk 0:02:54]} 7. Bg5 {[%clk 0:03:02]}  h6 {[%clk 0:02:54]} 8. Bxf6 {[%clk 0:02:56]}  Qxf6 {[%clk 0:02:54]} 9. Nd5 {[%clk 0:02:57]}  Qd8 {[%clk 0:02:54]} 10. c3 {[%clk 0:02:57]}  d6 {[%clk 0:02:52]} 11. b4 {[%clk 0:02:52]}  Ba7 {[%clk 0:02:51]} 12. h3 {[%clk 0:02:52]}  Ne7 {[%clk 0:02:45]} 13. Nxe7+ {[%clk 0:02:26]}  Qxe7 {[%clk 0:02:45]} 14. Re1 {[%clk 0:02:26]}  Kh8 {[%clk 0:02:34]} 15. d4 {[%clk 0:02:22]}  Be6 {[%clk 0:02:09]} 16. Bd3 {[%clk 0:01:56]}  Qf6 {[%clk 0:01:57]} 17. Bc2 {[%clk 0:01:44]}  Rfd8 {[%clk 0:01:48]} 18. Qd3 {[%clk 0:01:41]}  c6 {[%clk 0:01:45]} 19. Rad1 {[%clk 0:01:39]}  Bb6 {[%clk 0:01:45]} 20. a4 {[%clk 0:01:37]}  a5 {[%clk 0:01:42]} 21. b5 {[%clk 0:01:35]}  Rac8 {[%clk 0:01:42]} 22. bxc6 {[%clk 0:01:32]}  bxc6 {[%clk 0:01:41]} 23. Rb1 {[%clk 0:01:27]}  Bc7 {[%clk 0:01:27]} 24. d5 {[%clk 0:01:25]}  Bd7 {[%clk 0:01:25]} 25. Rb7 {[%clk 0:01:20]}  cxd5 {[%clk 0:01:17]} 26. exd5 {[%clk 0:01:17]}  g6 {[%clk 0:01:17]} 27. Nd2 {[%clk 0:01:07]}  Qh4 {[%clk 0:01:06]} 28. Re4 {[%clk 0:00:59]}  Qe7 {[%clk 0:00:53]} 29. Rc4 {[%clk 0:00:57]}  Bb8 {[%clk 0:00:54]} 30. Rxc8 {[%clk 0:00:55]}  Rxc8 {[%clk 0:00:54]} 31. Nc4 {[%clk 0:00:42]}  Qd8 {[%clk 0:00:45]} 32. Nxa5 {[%clk 0:00:15]}  Qxa5 {[%clk 0:00:20]} 33. Rxd7 {[%clk 0:00:14]}  Rxc3 {[%clk 0:00:18]} 34. Qd2 {[%clk 0:00:13]}  Kg7 {[%clk 0:00:17]} 35. Rb7 {[%clk 0:00:09]}  Bc7 {[%clk 0:00:15]} 36. Rb5 {[%clk 0:00:06]}  Rxc2 {[%clk 0:00:08]} 37. Qxc2 {[%clk 0:00:07]}  Qe1+ {[%clk 0:00:08]} 38. Kh2 {[%clk 0:00:06]}  Bd8 {[%clk 0:00:08]} 39. Rb1 {[%clk 0:00:05]}  Qa5 {[%clk 0:00:08]} 40. Qc4 {[%clk 0:00:04]}  Bb6 {[%clk 0:00:04]} 41. Rb2 {[%clk 0:00:02]}  Bd4 {[%clk 0:00:04]} 42. Re2 {[%clk 0:00:03]}  h5 {[%clk 0:00:04]} 43. Qb5 {[%clk 0:00:03]}  Qc3 {[%clk 0:00:03]} 44. a5 {[%clk 0:00:03]}  e4 {[%clk 0:00:03]} 45. a6 {[%clk 0:00:02]}  Be5+ {[%clk 0:00:03]} 46. g3 {[%clk 0:00:02]}  h4 {[%clk 0:00:03]} 47. Kg2 {[%clk 0:00:02]}  hxg3 {[%clk 0:00:03]} 48. Qa4 {[%clk 0:00:02]}  Qf3+ {[%clk 0:00:03]} 49. Kf1 {[%clk 0:00:01]}  Qh1# {[%clk 0:00:04]} 0-1


[Site "https://www.chess.com"]

[Event "Titled Tuesday Blitz December 06 Late 2022"]
[White "Kamsky, Gata"]
[Black "Abasov, Nijat"]
[WhiteFideId "2000024"]
[BlackFideId "13402960"]
[WhiteElo "2666"]
[BlackElo "2546"]
[Result "1/2-1/2"]
[Round "07"]
[TimeControl "180+1"]
[Date "2022.12.06"]
[WhiteClock "0:01:30"]
[BlackClock "0:01:07"]

1. d4 {[%clk 0:03:00]}  Nf6 {[%clk 0:02:59]} 2. Bf4 {[%clk 0:03:00]}  d5 {[%clk 0:02:59]} 3. e3 {[%clk 0:03:00]}  c5 {[%clk 0:02:52]} 4. c3 {[%clk 0:03:00]}  cxd4 {[%clk 0:02:47]} 5. exd4 {[%clk 0:02:59]}  Nc6 {[%clk 0:02:47]} 6. Nd2 {[%clk 0:02:58]}  Bf5 {[%clk 0:02:46]} 7. Ngf3 {[%clk 0:02:57]}  e6 {[%clk 0:02:46]} 8. Bb5 {[%clk 0:02:55]}  Bd6 {[%clk 0:02:46]} 9. Bxc6+ {[%clk 0:02:55]}  bxc6 {[%clk 0:02:46]} 10. Bxd6 {[%clk 0:02:55]}  Qxd6 {[%clk 0:02:47]} 11. b4 {[%clk 0:02:55]}  a5 {[%clk 0:02:41]} 12. a3 {[%clk 0:02:54]}  Ne4 {[%clk 0:02:29]} 13. Nxe4 {[%clk 0:02:53]}  Bxe4 {[%clk 0:02:29]} 14. O-O {[%clk 0:02:50]}  axb4 {[%clk 0:02:25]} 15. cxb4 {[%clk 0:02:44]}  Bxf3 {[%clk 0:02:22]} 16. Qxf3 {[%clk 0:02:44]}  O-O {[%clk 0:02:23]} 17. Rac1 {[%clk 0:02:42]}  Ra6 {[%clk 0:02:21]} 18. Rc3 {[%clk 0:02:41]}  Rfa8 {[%clk 0:02:21]} 19. h4 {[%clk 0:02:38]}  h6 {[%clk 0:02:11]} 20. g3 {[%clk 0:02:37]}  Qd7 {[%clk 0:02:07]} 21. Rd1 {[%clk 0:02:23]}  Qe7 {[%clk 0:01:49]} 22. Rdd3 {[%clk 0:02:16]}  e5 {[%clk 0:01:47]} 23. dxe5 {[%clk 0:02:15]}  Qxe5 {[%clk 0:01:48]} 24. Re3 {[%clk 0:02:07]}  Qd6 {[%clk 0:01:40]} 25. Rcd3 {[%clk 0:01:59]}  Rd8 {[%clk 0:01:38]} 26. h5 {[%clk 0:01:56]}  c5 {[%clk 0:01:35]} 27. bxc5 {[%clk 0:01:53]}  Qxc5 {[%clk 0:01:36]} 28. Re5 {[%clk 0:01:48]}  Rf6 {[%clk 0:01:19]} 29. Qe3 {[%clk 0:01:44]}  Qxe3 {[%clk 0:01:15]} 30. Rdxe3 {[%clk 0:01:41]}  Kf8 {[%clk 0:01:06]} 31. Rd3 {[%clk 0:01:40]}  Ra6 {[%clk 0:01:06]} 32. Rexd5 {[%clk 0:01:38]}  Rxd5 {[%clk 0:01:07]} 33. Rxd5 {[%clk 0:01:38]}  Rxa3 {[%clk 0:01:07]} 34. Kg2 {[%clk 0:01:31]}  Rb3 {[%clk 0:01:06]} 35. Re5 {[%clk 0:01:30]}  Ra3 {[%clk 0:01:06]} 36. Rd5 {[%clk 0:01:29]}  Rb3 {[%clk 0:01:07]} 37. Re5 {[%clk 0:01:30]}  Ra3 {[%clk 0:01:07]} 38. Rd5 {[%clk 0:01:30]} 1/2-1/2


[Site "https://www.chess.com"]

[Event "Titled Tuesday Blitz December 06 Late 2022"]
[White "Korkmaz, Necmettin"]
[Black "Bas Mas, Jose Joaquin"]
[WhiteFideId "6303285"]
[BlackFideId "22219064"]
[WhiteElo "2094"]
[BlackElo "2233"]
[Result "1-0"]
[Round "07"]
[TimeControl "180+1"]
[Date "2022.12.07"]
[WhiteClock "0:00:12"]
[BlackClock "0:00:09"]

1. e4 {[%clk 0:02:56]}  c5 {[%clk 0:02:59]} 2. Nc3 {[%clk 0:02:56]}  Nc6 {[%clk 0:02:58]} 3. f4 {[%clk 0:02:56]}  g6 {[%clk 0:02:57]} 4. Nf3 {[%clk 0:02:57]}  Bg7 {[%clk 0:02:57]} 5. Bb5 {[%clk 0:02:57]}  Nd4 {[%clk 0:02:57]} 6. O-O {[%clk 0:02:57]}  Nxb5 {[%clk 0:02:56]} 7. Nxb5 {[%clk 0:02:58]}  d5 {[%clk 0:02:53]} 8. exd5 {[%clk 0:02:57]}  a6 {[%clk 0:02:53]} 9. Nc3 {[%clk 0:02:57]}  Nf6 {[%clk 0:02:52]} 10. d4 {[%clk 0:02:56]}  Nxd5 {[%clk 0:02:51]} 11. dxc5 {[%clk 0:02:55]}  Nxc3 {[%clk 0:02:51]} 12. Qxd8+ {[%clk 0:02:55]}  Kxd8 {[%clk 0:02:51]} 13. bxc3 {[%clk 0:02:56]}  Bxc3 {[%clk 0:02:49]} 14. Rd1+ {[%clk 0:02:56]}  Kc7 {[%clk 0:02:47]} 15. Rb1 {[%clk 0:02:55]}  Bg4 {[%clk 0:02:46]} 16. Rd3 {[%clk 0:02:43]}  Bxf3 {[%clk 0:02:41]} 17. Rxc3 {[%clk 0:02:39]}  Be4 {[%clk 0:02:39]} 18. f5 {[%clk 0:02:30]}  gxf5 {[%clk 0:02:26]} 19. Bf4+ {[%clk 0:02:29]}  Kc8 {[%clk 0:02:22]} 20. Rb6 {[%clk 0:02:15]}  Rd8 {[%clk 0:02:11]} 21. Rh6 {[%clk 0:02:13]}  f6 {[%clk 0:01:54]} 22. Rxh7 {[%clk 0:02:02]}  e5 {[%clk 0:01:54]} 23. Be3 {[%clk 0:02:03]}  f4 {[%clk 0:01:53]} 24. Rh4 {[%clk 0:01:57]}  fxe3 {[%clk 0:01:52]} 25. Rxe3 {[%clk 0:01:50]}  Bc6 {[%clk 0:01:50]} 26. Rh6 {[%clk 0:01:49]}  Rd1+ {[%clk 0:01:48]} 27. Kf2 {[%clk 0:01:49]}  Kc7 {[%clk 0:01:44]} 28. Rxf6 {[%clk 0:01:47]}  Rad8 {[%clk 0:01:42]} 29. Rxe5 {[%clk 0:01:34]}  R1d2+ {[%clk 0:01:41]} 30. Re2 {[%clk 0:01:27]}  R2d5 {[%clk 0:01:41]} 31. g4 {[%clk 0:01:18]}  Rxc5 {[%clk 0:01:39]} 32. h4 {[%clk 0:01:18]}  Rd4 {[%clk 0:01:32]} 33. Rg6 {[%clk 0:01:14]}  Rc3 {[%clk 0:01:30]} 34. h5 {[%clk 0:01:12]}  Rf3+ {[%clk 0:01:25]} 35. Ke1 {[%clk 0:01:10]}  Rg3 {[%clk 0:01:22]} 36. h6 {[%clk 0:01:07]}  Rdxg4 {[%clk 0:01:05]} 37. h7 {[%clk 0:00:57]}  Rg1+ {[%clk 0:00:59]} 38. Kd2 {[%clk 0:00:49]}  Rd4+ {[%clk 0:00:56]} 39. Kc3 {[%clk 0:00:49]}  Rxg6 {[%clk 0:00:44]} 40. h8=Q {[%clk 0:00:46]}  Rdg4 {[%clk 0:00:36]} 41. Re7+ {[%clk 0:00:42]}  Kb6 {[%clk 0:00:25]} 42. Qd8+ {[%clk 0:00:42]}  Ka7 {[%clk 0:00:20]} 43. Re3 {[%clk 0:00:37]}  Bb5 {[%clk 0:00:13]} 44. Kb2 {[%clk 0:00:26]}  Rb6 {[%clk 0:00:09]} 45. Rb3 {[%clk 0:00:24]}  Rc4 {[%clk 0:00:08]} 46. c3 {[%clk 0:00:18]}  Rg4 {[%clk 0:00:04]} 47. Rb4 {[%clk 0:00:16]}  Rg2+ {[%clk 0:00:03]} 48. Ka3 {[%clk 0:00:15]}  Rg3 {[%clk 0:00:03]} 49. Rb3 {[%clk 0:00:14]}  Rc6 {[%clk 0:00:01]} 50. Qd4+ {[%clk 0:00:14]}  Ka8 {[%clk 0:00:02]} 51. Qd8+ {[%clk 0:00:13]}  Ka7 {[%clk 0:00:02]} 52. Qd2 {[%clk 0:00:12]}  Rgg6 {[%clk 0:00:02]} 53. Qd4+ {[%clk 0:00:12]}  Ka8 {[%clk 0:00:02]} 54. Rb4 {[%clk 0:00:12]}  Rgd6 {[%clk 0:00:01]} 55. Qh8+ {[%clk 0:00:11]}  Ka7 {[%clk 0:00:01]} 56. Qe5 {[%clk 0:00:09]}  a5 {[%clk 0:00:01]} 57. Rxb5 {[%clk 0:00:08]}  b6 {[%clk 0:00:01]} 58. Kb3 {[%clk 0:00:07]}  Ka6 {[%clk 0:00:02]} 59. a4 {[%clk 0:00:06]}  Kb7 {[%clk 0:00:01]} 60. Qe2 {[%clk 0:00:06]}  Rd7 {[%clk 0:00:01]} 61. Qe4 {[%clk 0:00:06]}  Rc7 {[%clk 0:00:02]} 62. Re5 {[%clk 0:00:06]}  Ka7 {[%clk 0:00:02]} 63. c4 {[%clk 0:00:06]}  Rxc4 {[%clk 0:00:02]} 64. Qxc4 {[%clk 0:00:06]}  Rxc4 {[%clk 0:00:02]} 65. Kxc4 {[%clk 0:00:06]}  Ka6 {[%clk 0:00:03]} 66. Re6 {[%clk 0:00:07]}  Kb7 {[%clk 0:00:03]} 67. Kb5 {[%clk 0:00:07]}  Kc7 {[%clk 0:00:04]} 68. Rxb6 {[%clk 0:00:08]}  Kd7 {[%clk 0:00:05]} 69. Kxa5 {[%clk 0:00:08]}  Ke7 {[%clk 0:00:05]} 70. Kb5 {[%clk 0:00:08]}  Kd7 {[%clk 0:00:06]} 71. a5 {[%clk 0:00:09]}  Kc7 {[%clk 0:00:07]} 72. a6 {[%clk 0:00:10]}  Kc8 {[%clk 0:00:08]} 73. a7 {[%clk 0:00:11]}  Kd7 {[%clk 0:00:09]} 74. a8=Q {[%clk 0:00:11]}  Kc7 {[%clk 0:00:09]} 75. Qa7+ {[%clk 0:00:12]} 1-0


[Site "https://www.chess.com"]

[Event "Titled Tuesday Blitz December 06 Late 2022"]
[White "Korobov, Anton"]
[Black "Quesada Perez, Yuniesky"]
[WhiteFideId "14105730"]
[BlackFideId "3504409"]
[WhiteElo "2635"]
[BlackElo "2600"]
[Result "1-0"]
[Round "07"]
[TimeControl "180+1"]
[Date "2022.12.06"]
[WhiteClock "0:00:54"]
[BlackClock "0:00:28"]

1. d4 {[%clk 0:03:00]}  d5 {[%clk 0:02:59]} 2. c4 {[%clk 0:03:00]}  c6 {[%clk 0:03:00]} 3. Nc3 {[%clk 0:03:00]}  Nf6 {[%clk 0:03:00]} 4. cxd5 {[%clk 0:03:01]}  cxd5 {[%clk 0:03:00]} 5. Bg5 {[%clk 0:03:01]}  Nc6 {[%clk 0:02:47]} 6. Bxf6 {[%clk 0:03:00]}  gxf6 {[%clk 0:02:46]} 7. e3 {[%clk 0:03:00]}  e6 {[%clk 0:02:40]} 8. Bd3 {[%clk 0:03:00]}  Bd6 {[%clk 0:02:39]} 9. Rc1 {[%clk 0:02:56]}  Bd7 {[%clk 0:02:38]} 10. f4 {[%clk 0:02:44]}  Ne7 {[%clk 0:02:37]} 11. Nf3 {[%clk 0:02:43]}  a6 {[%clk 0:02:36]} 12. O-O {[%clk 0:02:42]}  Bc6 {[%clk 0:02:37]} 13. a3 {[%clk 0:02:29]}  Rc8 {[%clk 0:02:34]} 14. Na4 {[%clk 0:02:26]}  Bxa4 {[%clk 0:02:04]} 15. Qxa4+ {[%clk 0:02:27]}  Qd7 {[%clk 0:02:04]} 16. Rxc8+ {[%clk 0:02:18]}  Nxc8 {[%clk 0:02:04]} 17. Qc2 {[%clk 0:02:18]}  Ne7 {[%clk 0:02:03]} 18. Rc1 {[%clk 0:02:16]}  f5 {[%clk 0:01:51]} 19. Ne5 {[%clk 0:02:08]}  Bxe5 {[%clk 0:01:50]} 20. fxe5 {[%clk 0:02:08]}  O-O {[%clk 0:01:46]} 21. Qc7 {[%clk 0:02:05]}  Rd8 {[%clk 0:01:46]} 22. b4 {[%clk 0:01:53]}  Kg7 {[%clk 0:01:40]} 23. Rc5 {[%clk 0:01:41]}  Ng6 {[%clk 0:01:09]} 24. a4 {[%clk 0:01:34]}  Nf8 {[%clk 0:01:04]} 25. b5 {[%clk 0:01:29]}  axb5 {[%clk 0:00:56]} 26. Bxb5 {[%clk 0:01:29]}  Qxc7 {[%clk 0:00:54]} 27. Rxc7 {[%clk 0:01:30]}  Rb8 {[%clk 0:00:52]} 28. Kf2 {[%clk 0:01:29]}  Ng6 {[%clk 0:00:51]} 29. g3 {[%clk 0:01:24]}  Kf8 {[%clk 0:00:51]} 30. Ke2 {[%clk 0:01:24]}  h6 {[%clk 0:00:50]} 31. Kd3 {[%clk 0:01:24]}  Ne7 {[%clk 0:00:50]} 32. Bd7 {[%clk 0:01:17]}  Ng6 {[%clk 0:00:39]} 33. Kc3 {[%clk 0:01:13]}  h5 {[%clk 0:00:39]} 34. Kb4 {[%clk 0:01:09]}  h4 {[%clk 0:00:39]} 35. Kb5 {[%clk 0:01:05]}  b6 {[%clk 0:00:34]} 36. Rc8+ {[%clk 0:01:02]}  Rxc8 {[%clk 0:00:31]} 37. Bxc8 {[%clk 0:01:03]}  Ne7 {[%clk 0:00:31]} 38. Bd7 {[%clk 0:01:01]}  h3 {[%clk 0:00:30]} 39. Kxb6 {[%clk 0:01:00]}  f4 {[%clk 0:00:30]} 40. exf4 {[%clk 0:00:54]}  Nf5 {[%clk 0:00:30]} 41. a5 {[%clk 0:00:54]}  Nxg3 {[%clk 0:00:29]} 42. a6 {[%clk 0:00:54]}  Nf1 {[%clk 0:00:28]} 43. a7 {[%clk 0:00:54]} 1-0


[Site "https://www.chess.com"]